bitfinex/quotes_BTCUSD_20250602
["timestamp","ask_amount","ask_price","bid_price","bid_amount"]
[1748825799445,0.0473919,105490.0,105480.0,0.23056298]
[1748825799837,0.0473919,105490.0,105480.0,0.23944708]
[1748825802341,0.0473919,105490.0,105480.0,0.23944759]
[1748825802548,0.0473919,105490.0,105480.0,0.23944757]
[1748825803244,0.0473919,105490.0,105480.0,0.239448]
[1748825803368,0.0473919,105490.0,105480.0,0.23944796]
[1748825804169,0.0473919,105490.0,105480.0,0.23944792]
[1748825805034,0.0473919,105490.0,105480.0,0.23056296]
[1748825805191,0.0094756,105490.0,105480.0,0.23944792]
[1748825805401,0.02843357,105490.0,105480.0,0.27104789]
[1748825805822,0.03791287,105490.0,105480.0,0.23944789]
[1748825806026,0.23698387,105490.0,105480.0,0.22048803]
[1748825806243,0.07799226,105490.0,105480.0,0.22996799]
[1748825806663,0.07799226,105490.0,105480.0,0.229968]
[1748825806915,0.07799226,105490.0,105480.0,0.22996802]
[1748825807901,0.07799226,105490.0,105480.0,0.22996835]
[1748825808107,0.06866227,105490.0,105480.0,0.22996835]
[1748825808420,0.06866227,105490.0,105480.0,0.22108296]
[1748825808622,0.03806227,105490.0,105480.0,0.22996856]
[1748825808824,0.05336227,105490.0,105480.0,0.22996856]
[1748825809350,0.05336227,105490.0,105480.0,0.22108296]
[1748825809572,0.05336227,105490.0,105480.0,0.22996858]
[1748825810602,0.05336227,105490.0,105480.0,0.22108297]
[1748825810811,0.02858288,105490.0,105480.0,0.22996863]
[1748825811544,0.02858288,105490.0,105480.0,0.22996868]
[1748825812374,0.02858288,105490.0,105480.0,0.22996869]
[1748825812574,0.01910358,105490.0,105480.0,0.22996869]
[1748825812774,0.02858288,105490.0,105480.0,0.22996869]
[1748825813183,0.02858288,105490.0,105480.0,0.22108297]
[1748825813533,0.02858288,105490.0,105480.0,0.22996863]
[1748825814072,0.02858288,105490.0,105480.0,0.22108297]
[1748825814282,0.02858288,105490.0,105480.0,0.22996859]
[1748825814591,0.00014561,105490.0,105480.0,0.26126859]
[1748825814768,0.00962446,105490.0,105480.0,0.26126834]
[1748825815317,0.00962446,105490.0,105480.0,0.26126778]
[1748825815539,0.00962446,105490.0,105480.0,0.26126768]
[1748825816820,0.00962446,105490.0,105480.0,0.2612674]
[1748825817166,0.00962446,105490.0,105480.0,0.26126739]
[1748825817394,0.00962446,105490.0,105480.0,0.26126721]
[1748825817993,0.0191034,105490.0,105480.0,0.26126721]
[1748825818437,0.0191034,105490.0,105480.0,0.25238287]
[1748825818639,0.0191034,105490.0,105480.0,0.2612662]
[1748825818843,0.0191034,105490.0,105480.0,0.26126622]
[1748825819051,0.00014561,105490.0,105480.0,0.26126622]
[1748825819268,0.00014561,105490.0,105480.0,0.25238287]
[1748825819474,0.00962455,105490.0,105480.0,0.2612661]
[1748825819879,0.00962455,105490.0,105480.0,0.26126609]
[1748825820086,0.00014561,105490.0,105480.0,0.26126609]
[1748825820499,0.00962455,105490.0,105480.0,0.26126609]
[1748825820722,0.00962446,105490.0,105480.0,0.26126605]
[1748825821106,0.01910349,105490.0,105480.0,0.26126613]
[1748825821513,0.0285827,105490.0,105480.0,0.26126613]
[1748825821718,0.01910349,105490.0,105480.0,0.26126613]
[1748825821873,0.01910349,105490.0,105480.0,0.26126578]
[1748825822128,0.01910349,105490.0,105480.0,0.26126579]
[1748825822330,0.01910349,105490.0,105480.0,0.26126574]
[1748825822575,0.01910349,105490.0,105480.0,0.25823266]
[1748825822778,0.01910349,105490.0,105480.0,0.26126584]
[1748825823425,0.01910349,105490.0,105480.0,0.25238291]
[1748825823631,0.01910349,105490.0,105480.0,0.26126588]
[1748825823832,0.01910349,105490.0,105480.0,0.26126593]
[1748825824268,0.0285827,105490.0,105480.0,0.26126593]
[1748825824869,0.0285827,105490.0,105480.0,0.24616592]
[1748825825168,0.0285827,105490.0,105480.0,0.23728291]
[1748825825424,0.0285827,105490.0,105480.0,0.24616589]
[1748825825626,0.0285827,105490.0,105480.0,0.23728291]
[1748825825750,0.0285827,105490.0,105480.0,0.24616588]
[1748825825976,0.01910349,105490.0,105480.0,0.24616594]
[1748825826251,0.0285827,105490.0,105480.0,0.24616594]
[1748825826450,0.0285827,105490.0,105480.0,0.24616591]
[1748825827031,0.0285827,105490.0,105480.0,0.24616595]
[1748825827209,0.01910349,105490.0,105480.0,0.24616595]
[1748825827410,0.0285827,105490.0,105480.0,0.24616595]
[1748825828357,0.0285827,105490.0,105480.0,0.24616606]
[1748825828635,0.0285827,105490.0,105480.0,0.24616603]
[1748825829313,0.02858261,105490.0,105480.0,0.24616603]
[1748825829529,0.02858261,105490.0,105480.0,0.24616608]
[1748825829769,0.02858261,105490.0,105480.0,0.24616607]
[1748825830681,0.02858261,105490.0,105480.0,0.23728293]
[1748825831126,0.03806182,105490.0,105480.0,0.24616614]
[1748825831329,0.03806182,105490.0,105480.0,0.24616613]
[1748825831504,0.03806182,105490.0,105480.0,0.24616612]
[1748825832242,0.04754121,105490.0,105480.0,0.24616612]
[1748825832478,0.28337349,105490.0,105480.0,0.01191639]
[1748825832703,0.61580001,105490.0,105480.0,0.0088832]
[1748825832904,0.54753649,105490.0,105480.0,0.0088832]
[1748825833328,0.22366944,105480.0,105470.0,0.21162273]
[1748825833558,0.31410944,105480.0,105470.0,0.220504]
[1748825833970,0.32358937,105480.0,105470.0,0.22998491]
[1748825834193,0.32358937,105480.0,105470.0,0.220504]
[1748825834409,0.32358937,105480.0,105470.0,0.22998491]
[1748825834608,0.32358937,105480.0,105470.0,0.22050387]
[1748825834759,0.33306984,105480.0,105470.0,0.22998478]
[1748825835350,0.32359018,105480.0,105470.0,0.22998478]
[1748825835780,0.14346098,105480.0,105470.0,0.2394659]
[1748825835987,0.14346098,105480.0,105470.0,0.23058476]
[1748825836193,0.14346098,105480.0,105470.0,0.23946294]
[1748825836375,0.33307038,105480.0,105470.0,0.23946294]
[1748825836705,0.14346098,105480.0,105470.0,0.23946189]
[1748825837180,0.13398051,105480.0,105470.0,0.24894262]
[1748825837621,0.32358991,105480.0,105470.0,0.20214203]
[1748825837976,0.32358991,105480.0,105470.0,0.22110394]
[1748825838131,0.32358991,105480.0,105470.0,0.22998085]
[1748825838330,0.32358991,105480.0,105470.0,0.22997995]
[1748825839332,0.32358991,105480.0,105470.0,0.22110394]
[1748825839533,0.32358991,105480.0,105470.0,0.22997921]
[1748825840075,0.32358991,105480.0,105470.0,0.22694572]
[1748825840302,0.32358991,105480.0,105470.0,0.22997921]
[1748825840941,0.32358991,105480.0,105470.0,0.23946003]
[1748825841146,0.32358991,105480.0,105470.0,0.2110173]
[1748825841385,0.33307038,105480.0,105470.0,0.2299783]
[1748825841568,0.33307038,105480.0,105470.0,0.22110394]
[1748825841728,0.14346098,105480.0,105470.0,0.23945903]
[1748825842090,0.34268859,105480.0,105470.0,0.22110394]
[1748825842308,0.34268859,105480.0,105470.0,0.22997804]
[1748825842746,0.15307919,105480.0,105470.0,0.22997779]
[1748825842935,0.15307919,105480.0,105470.0,0.23945852]
[1748825843866,0.14359872,105480.0,105470.0,0.23945852]
[1748825844082,0.34268859,105480.0,105470.0,0.22997779]
[1748825844300,0.34268859,105480.0,105470.0,0.2299774]
[1748825844543,0.35898859,105480.0,105470.0,0.2299774]
[1748825844773,0.35898859,105480.0,105470.0,0.22110394]
[1748825844965,0.35898859,105480.0,105470.0,0.2299774]
[1748825846160,0.35898859,105480.0,105470.0,0.22997728]
[1748825846377,0.35898859,105480.0,105470.0,0.22110412]
[1748825846589,0.35898859,105480.0,105470.0,0.22997742]
[1748825846814,0.35898859,105480.0,105470.0,0.23945833]
[1748825847036,0.35898859,105480.0,105470.0,0.23058503]
[1748825847677,0.35898859,105480.0,105470.0,0.23945833]
[1748825847882,0.35898859,105480.0,105470.0,0.23058503]
[1748825848258,0.35898859,105480.0,105470.0,0.23945833]
[1748825848668,0.34268859,105480.0,105470.0,0.23945874]
[1748825849827,0.25224859,105480.0,105470.0,0.23945874]
[1748825850042,0.25224859,105480.0,105470.0,0.2394588]
[1748825850445,0.24276866,105480.0,105470.0,0.21162312]
[1748825850651,0.24276866,105480.0,105470.0,0.2299778]
[1748825850860,0.04367879,105480.0,105470.0,0.23058485]
[1748825851060,0.02857879,105480.0,105470.0,0.23058485]
[1748825851258,0.02857879,105480.0,105470.0,0.23945909]
[1748825852116,0.02857879,105480.0,105470.0,0.23945918]
[1748825852712,0.02857879,105480.0,105470.0,0.23945937]
[1748825852914,0.21818819,105480.0,105470.0,0.21101655]
[1748825853121,0.23438819,105480.0,105470.0,0.22997855]
[1748825854106,0.21818819,105480.0,105470.0,0.2489401]
[1748825854310,0.02857879,105480.0,105470.0,0.2489405]
[1748825854927,0.02857879,105480.0,105470.0,0.24894066]
[1748825855780,0.02857879,105480.0,105470.0,0.24006558]
[1748825856167,0.02857879,105480.0,105470.0,0.24894103]
[1748825856408,0.02857879,105480.0,105470.0,0.24006558]
[1748825856611,0.02857879,105480.0,105470.0,0.24894161]
[1748825857212,0.02857879,105480.0,105470.0,0.24006558]
[1748825857382,0.02857879,105480.0,105470.0,0.2489418]
[1748825857985,0.02857879,105480.0,105470.0,0.24894238]
[1748825858184,0.02857879,105480.0,105470.0,0.24006558]
[1748825858364,0.02857879,105480.0,105470.0,0.24894238]
[1748825858878,0.02857879,105480.0,105470.0,0.24894259]
[1748825859259,0.02857879,105480.0,105470.0,0.24894351]
[1748825859460,0.02857879,105480.0,105470.0,0.24006558]
[1748825860070,0.22766866,105480.0,105470.0,0.23058485]
[1748825860312,0.22766866,105480.0,105470.0,0.23946278]
[1748825861180,0.22766866,105480.0,105470.0,0.23058485]
[1748825861330,0.22766866,105480.0,105470.0,0.23946443]
[1748825861551,0.22766866,105480.0,105470.0,0.23058485]
[1748825861739,0.03805926,105480.0,105470.0,0.23946645]
[1748825861943,0.22766866,105480.0,105470.0,0.22695222]
[1748825862171,0.22766866,105480.0,105470.0,0.23946662]
[1748825862399,0.22766866,105480.0,105470.0,0.23947215]
[1748825863252,0.22766866,105480.0,105470.0,0.23058503]
[1748825863457,0.22766866,105480.0,105470.0,0.23947217]
[1748825863666,0.22766866,105480.0,105470.0,0.23058503]
[1748825863887,0.22766866,105480.0,105470.0,0.23947217]
[1748825864115,0.22766866,105480.0,105470.0,0.23058503]
[1748825864307,0.21818846,105480.0,105470.0,0.22110412]
[1748825865259,0.21818846,105480.0,105470.0,0.22999129]
[1748825865641,0.21818846,105480.0,105470.0,0.23058503]
[1748825865848,0.21818846,105480.0,105470.0,0.2394722]
[1748825866219,0.21818846,105480.0,105470.0,0.23058503]
[1748825866441,0.21818846,105480.0,105470.0,0.23947193]
[1748825866651,0.30854846,105480.0,105470.0,0.23947193]
[1748825866868,0.30854846,105480.0,105470.0,0.23058504]
[1748825867291,0.33884846,105480.0,105470.0,0.23058504]
[1748825868037,0.32364846,105480.0,105470.0,0.23058504]
[1748825868400,0.30854846,105480.0,105470.0,0.23058504]
[1748825868591,0.30854846,105480.0,105470.0,0.23947193]
[1748825868765,0.30854846,105480.0,105470.0,0.23058504]
[1748825870263,0.30854846,105480.0,105470.0,0.23947192]
[1748825870610,0.30854846,105480.0,105470.0,0.2394719]
[1748825871245,0.30854846,105480.0,105470.0,0.23058504]
[1748825871686,0.30854846,105480.0,105470.0,0.2394719]
[1748825871884,0.30854846,105480.0,105470.0,0.23058504]
[1748825872087,0.30854846,105480.0,105470.0,0.2394719]
[1748825872226,0.30854846,105480.0,105470.0,0.23058504]
[1748825872639,0.30854846,105480.0,105470.0,0.23947178]
[1748825872840,0.11893906,105480.0,105470.0,0.24006577]
[1748825873410,0.30854846,105480.0,105470.0,0.23058504]
[1748825874415,0.30854846,105480.0,105470.0,0.22110413]
[1748825874982,0.30854846,105480.0,105470.0,0.22999083]
[1748825875390,0.30854846,105480.0,105470.0,0.22110413]
[1748825875626,0.30854846,105480.0,105470.0,0.22999083]
[1748825875821,0.30854846,105480.0,105470.0,0.22110413]
[1748825876649,0.30854846,105480.0,105470.0,0.22050984]
[1748825876886,0.30854846,105480.0,105470.0,0.21162313]
[1748825877783,0.31360893,105480.0,105470.0,0.21102879]
[1748825878003,0.31360893,105480.0,105470.0,0.21162315]
[1748825879561,0.11451906,105480.0,105470.0,0.24212315]
[1748825879781,0.11451906,105480.0,105470.0,0.26108506]
[1748825879782,0.15243977,105480.0,105470.0,0.26108506]
[1748825880015,0.15243977,105480.0,105470.0,0.21162315]
[1748825880016,0.33256924,105480.0,105470.0,0.21162315]
[1748825880266,0.33256924,105480.0,105470.0,0.22050984]
[1748825880471,0.33256924,105480.0,105470.0,0.21162315]
[1748825880906,0.33256924,105480.0,105470.0,0.22110415]
[1748825881777,0.31360893,105480.0,105470.0,0.0030335]
[1748825881985,0.31360893,105480.0,105470.0,0.21162351]
[1748825882203,0.31360893,105480.0,105470.0,0.22110469]
[1748825882421,0.31360893,105480.0,105470.0,0.21162351]
[1748825882630,0.31360893,105480.0,105470.0,0.22051017]
[1748825882841,0.31360893,105480.0,105470.0,0.21162351]
[1748825883263,0.31360893,105480.0,105470.0,0.22110469]
[1748825883477,0.31360893,105480.0,105470.0,0.22999145]
[1748825883898,0.31360893,105480.0,105470.0,0.22110469]
[1748825884548,0.31360893,105480.0,105470.0,0.21162351]
[1748825884963,0.31360893,105480.0,105470.0,0.22110469]
[1748825885579,0.31360893,105480.0,105470.0,0.22999141]
[1748825885767,0.31360893,105480.0,105470.0,0.22110469]
[1748825886104,0.31360893,105480.0,105470.0,0.22999141]
[1748825886312,0.31360893,105480.0,105470.0,0.22110469]
[1748825886956,0.31360893,105480.0,105470.0,0.22110475]
[1748825887158,0.31360893,105480.0,105470.0,0.22999143]
[1748825887401,0.31360893,105480.0,105470.0,0.22110475]
[1748825887600,0.31360893,105480.0,105470.0,0.00303356]
[1748825887806,0.32870893,105480.0,105470.0,0.00303356]
[1748825888422,0.34380893,105480.0,105470.0,0.00303356]
[1748825889077,0.34380893,105480.0,105470.0,0.0119202]
[1748825889289,0.34380893,105480.0,105470.0,0.00303356]
[1748825889750,0.34380893,105480.0,105470.0,0.01192029]
[1748825890823,0.34380893,105480.0,105470.0,0.02080703]
[1748825891049,0.34380893,105480.0,105470.0,0.01192029]
[1748825891470,0.34380893,105480.0,105470.0,0.02080706]
[1748825891891,0.34380893,105480.0,105470.0,0.02080368]
[1748825892100,0.32870893,105480.0,105470.0,0.01192032]
[1748825892299,0.32870893,105480.0,105470.0,0.02080334]
[1748825892506,0.31360893,105480.0,105470.0,0.02080334]
[1748825893384,0.33020893,105480.0,105470.0,0.02080334]
[1748825894035,0.33020893,105480.0,105470.0,0.01192032]
[1748825894465,0.33020893,105480.0,105470.0,0.02080334]
[1748825895363,0.23984893,105480.0,105470.0,0.02080357]
[1748825895574,0.31352893,105480.0,105470.0,0.02080357]
[1748825895786,0.31352893,105480.0,105470.0,0.01776998]
[1748825895965,0.31352893,105480.0,105470.0,0.02080357]
[1748825896396,0.32982893,105480.0,105470.0,0.02080357]
[1748825897019,0.32982893,105480.0,105470.0,0.01192032]
[1748825897253,0.31352893,105480.0,105470.0,0.01192032]
[1748825897703,0.77153423,105480.0,105470.0,0.02080435]
[1748825897920,0.68592893,105480.0,105470.0,0.01192032]
[1748825898127,0.70477972,105480.0,105470.0,0.00888673]
[1748825899392,0.70477972,105480.0,105470.0,0.01777131]
[1748825899600,0.70477972,105480.0,105470.0,0.00888673]
[1748825900287,0.89314524,105480.0,105470.0,0.00888673]
[1748825900706,0.89314524,105480.0,105470.0,0.01777142]
[1748825900920,0.89314524,105480.0,105470.0,0.00888673]
[1748825901354,0.80063402,105480.0,105470.0,0.00888673]
[1748825902541,0.80063402,105480.0,105470.0,0.01777494]
[1748825902757,0.80063402,105480.0,105470.0,0.00888673]
[1748825903899,0.80063402,105480.0,105470.0,0.01777494]
[1748825904332,0.80063402,105480.0,105470.0,0.00888673]
[1748825904975,0.77216502,105480.0,105470.0,0.00888673]
[1748825905425,0.67631072,105480.0,105470.0,0.01836809]
[1748825905631,0.92671025,105480.0,105470.0,0.00888673]
[1748825905837,0.94251025,105480.0,105470.0,0.00888673]
[1748825906046,0.95771025,105480.0,105470.0,0.00888673]
[1748825906709,0.94251025,105480.0,105470.0,0.00888673]
[1748825907122,0.94251025,105480.0,105470.0,0.017775]
[1748825907336,0.94251025,105480.0,105470.0,0.01777499]
[1748825907565,0.94251025,105480.0,105470.0,0.017775]
[1748825907772,0.94251025,105480.0,105470.0,0.00888673]
[1748825908041,0.55995025,105480.0,105470.0,0.00888673]
[1748825908236,0.94251025,105480.0,105470.0,0.00888673]
[1748825909376,0.95744416,105480.0,105470.0,0.00888673]
[1748825909753,0.94251025,105480.0,105470.0,0.00888673]
[1748825910165,0.55995025,105480.0,105470.0,0.01777496]
[1748825910384,0.94247025,105480.0,105470.0,0.01777496]
[1748825910801,0.94247025,105480.0,105470.0,0.00888673]
[1748825910949,0.94247025,105480.0,105470.0,0.01777496]
[1748825911164,0.94247025,105480.0,105470.0,0.00888673]
[1748825912428,0.95767025,105480.0,105470.0,0.01777496]
[1748825912649,0.95767025,105480.0,105470.0,0.00888673]
[1748825912865,0.95767025,105480.0,105470.0,0.01777496]
[1748825913270,0.94247025,105480.0,105470.0,0.01777496]
[1748825913476,0.94247025,105480.0,105470.0,0.00888673]
[1748825913934,0.94247025,105480.0,105470.0,0.01777496]
[1748825914144,0.94247025,105480.0,105470.0,0.00888673]
[1748825915190,0.92667025,105480.0,105470.0,0.00888673]
[1748825915511,0.92667025,105480.0,105470.0,0.01777495]
[1748825916123,0.92667025,105480.0,105470.0,0.00888673]
[1748825918008,0.92663025,105480.0,105470.0,0.00888673]
[1748825918402,0.92663025,105480.0,105470.0,0.01776531]
[1748825918758,0.92663025,105480.0,105470.0,0.00888673]
[1748825921040,0.92663025,105480.0,105470.0,0.01776531]
[1748825921857,0.92663025,105480.0,105470.0,0.00888673]
[1748825922035,0.92663025,105480.0,105470.0,0.02428673]
[1748825922243,0.92663025,105480.0,105470.0,0.04866418]
[1748825923031,0.92647025,105480.0,105470.0,0.04866418]
[1748825923497,0.92647025,105480.0,105470.0,0.01776418]
[1748825923716,0.94287025,105480.0,105470.0,0.01776418]
[1748825923949,0.94287025,105480.0,105470.0,0.01776315]
[1748825924811,0.95927025,105480.0,105470.0,0.01776315]
[1748825925424,0.95927025,105480.0,105470.0,0.00888673]
[1748825925648,0.95927025,105480.0,105470.0,0.0177653]
[1748825925853,0.95927025,105480.0,105470.0,0.00888673]
[1748825926055,0.95927025,105480.0,105470.0,0.01776613]
[1748825926211,0.95927025,105480.0,105470.0,0.00888673]
[1748825926414,0.94287025,105480.0,105470.0,0.00888673]
[1748825926737,0.94287025,105480.0,105470.0,0.01776613]
[1748825927276,0.92647025,105480.0,105470.0,0.01777486]
[1748825927470,0.92647025,105480.0,105470.0,0.00888673]
[1748825927701,0.94177025,105480.0,105470.0,0.00888673]
[1748825928077,0.94177025,105480.0,105470.0,0.01777486]
[1748825928291,0.94177025,105480.0,105470.0,0.00888673]
[1748825929755,0.94177025,105480.0,105470.0,0.01777493]
[1748825929955,0.94177025,105480.0,105470.0,0.02666263]
[1748825930166,0.94177025,105480.0,105470.0,0.01777493]
[1748825930367,0.94177025,105480.0,105470.0,0.02666262]
[1748825930827,0.92647025,105480.0,105470.0,0.02666259]
[1748825931624,0.92647025,105480.0,105470.0,0.01777493]
[1748825932074,0.64379027,105480.0,105470.0,0.25726458]
[1748825932292,0.95487076,105480.0,105470.0,0.24778358]
[1748825932523,0.95487076,105480.0,105470.0,0.25726476]
[1748825932786,0.95487076,105480.0,105470.0,0.25667112]
[1748825933004,0.95487076,105480.0,105470.0,0.24778358]
[1748825933244,0.94539074,105480.0,105470.0,0.24778358]
[1748825933453,0.94539074,105480.0,105470.0,0.25667112]
[1748825933652,0.94539074,105480.0,105470.0,0.24778358]
[1748825933851,0.94539074,105480.0,105470.0,0.25667112]
[1748825934050,0.65327074,105480.0,105470.0,0.25726476]
[1748825934314,0.65327074,105480.0,105470.0,0.2661523]
[1748825934536,0.6629108,105480.0,105470.0,0.25667112]
[1748825935060,0.6629108,105480.0,105470.0,0.2661523]
[1748825935261,0.9549908,105480.0,105470.0,0.25667112]
[1748825935517,0.93603031,105480.0,105470.0,0.05756177]
[1748825935697,0.93603031,105480.0,105470.0,0.06704313]
[1748825936116,0.93603031,105480.0,105470.0,0.05815629]
[1748825936316,0.93603031,105480.0,105470.0,0.06704313]
[1748825936713,0.55379031,105480.0,105470.0,0.06704313]
[1748825936921,0.93603031,105480.0,105470.0,0.05815629]
[1748825937127,0.93603031,105480.0,105470.0,0.06704313]
[1748825937486,0.64395031,105480.0,105470.0,0.06704313]
[1748825938229,0.55379031,105480.0,105470.0,0.06704313]
[1748825938553,0.64395031,105480.0,105470.0,0.05815629]
[1748825938958,0.64395031,105480.0,105470.0,0.06704313]
[1748825939092,0.55379031,105480.0,105470.0,0.05815629]
[1748825939289,0.64395031,105480.0,105470.0,0.04867493]
[1748825940048,0.64395031,105480.0,105470.0,0.05756177]
[1748825940276,0.64395031,105480.0,105470.0,0.04867493]
[1748825941113,0.64395031,105480.0,105470.0,0.05756177]
[1748825941484,0.64395031,105480.0,105470.0,0.04867493]
[1748825941857,0.64395031,105480.0,105470.0,0.02666149]
[1748825942052,0.64395031,105480.0,105470.0,0.0266615]
[1748825943031,0.66015031,105480.0,105470.0,0.02666163]
[1748825943692,0.66015031,105480.0,105470.0,0.02666172]
[1748825943831,0.66015031,105480.0,105470.0,0.01777493]
[1748825944042,0.66015031,105480.0,105470.0,0.02666172]
[1748825944437,0.66015031,105480.0,105470.0,0.02666176]
[1748825945656,0.64395031,105480.0,105470.0,0.02666176]
[1748825945862,0.64395031,105480.0,105470.0,0.02666177]
[1748825946062,0.64395031,105480.0,105470.0,0.02666171]
[1748825946255,0.64395031,105480.0,105470.0,0.01777493]
[1748825946610,0.64395031,105480.0,105470.0,0.02666176]
[1748825947599,0.64395031,105480.0,105470.0,0.01777493]
[1748825947804,0.64395031,105480.0,105470.0,0.02666176]
[1748825948779,0.64395031,105480.0,105470.0,0.01777493]
[1748825948988,0.64395031,105480.0,105470.0,0.0266618]
[1748825949154,0.64395031,105480.0,105470.0,0.01777493]
[1748825949481,0.64395031,105480.0,105470.0,0.0266618]
[1748825949692,0.64395031,105480.0,105470.0,0.01777493]
[1748825950097,0.64395031,105480.0,105470.0,0.0266618]
[1748825950304,0.64395031,105480.0,105470.0,0.01777493]
[1748825952898,0.64395031,105480.0,105470.0,0.02666176]
[1748825953104,0.64395031,105480.0,105470.0,0.01777493]
[1748825953706,0.64395031,105480.0,105470.0,0.02666171]
[1748825954038,0.64395031,105480.0,105470.0,0.01777493]
[1748825954241,0.64395031,105480.0,105470.0,0.02666171]
[1748825954503,0.64395031,105480.0,105470.0,0.01777493]
[1748825955355,0.64395031,105480.0,105470.0,0.02666167]
[1748825955558,0.64395031,105480.0,105470.0,0.01777493]
[1748825956169,0.64395031,105480.0,105470.0,0.02666163]
[1748825956370,0.64395031,105480.0,105470.0,0.01777493]
[1748825956962,0.64395031,105480.0,105470.0,0.02666163]
[1748825957167,0.64395031,105480.0,105470.0,0.01777493]
[1748825957563,0.64395031,105480.0,105470.0,0.02666163]
[1748825957765,0.77140461,105480.0,105470.0,0.01777493]
[1748825958034,0.77140461,105480.0,105470.0,0.02666169]
[1748825958201,0.77140461,105480.0,105470.0,0.01777493]
[1748825958402,0.75590461,105480.0,105470.0,0.01777493]
[1748825958603,0.73980461,105480.0,105470.0,0.0266617]
[1748825958803,0.73980461,105480.0,105470.0,0.01777493]
[1748825961787,0.73980461,105480.0,105470.0,0.02666203]
[1748825961930,0.73980461,105480.0,105470.0,0.01777493]
[1748825962544,1.03160461,105480.0,105470.0,0.02666203]
[1748825962773,1.03160461,105480.0,105470.0,0.01777493]
[1748825962978,1.03160461,105480.0,105470.0,0.02666203]
[1748825963192,1.03160461,105480.0,105470.0,0.01777493]
[1748825963399,1.04670461,105480.0,105470.0,0.01777493]
[1748825963648,1.04670461,105480.0,105470.0,0.02666203]
[1748825964423,1.04670461,105480.0,105470.0,0.02666168]
[1748825965400,1.04670461,105480.0,105470.0,0.02666162]
[1748825965629,1.04670461,105480.0,105470.0,0.01777493]
[1748825965840,1.03160461,105480.0,105470.0,0.01777493]
[1748825966042,1.03160461,105480.0,105470.0,0.02666162]
[1748825966305,1.03160461,105480.0,105470.0,0.01777493]
[1748825967729,1.03160461,105480.0,105470.0,0.02666162]
[1748825967936,1.04810461,105480.0,105470.0,0.02666175]
[1748825968074,1.04810461,105480.0,105470.0,0.01777493]
[1748825968487,1.12945102,105480.0,105470.0,0.01777493]
[1748825969140,1.12943955,105480.0,105470.0,0.01777493]
[1748825969997,1.12943955,105480.0,105470.0,0.02666196]
[1748825970371,1.12943955,105480.0,105470.0,0.01777493]
[1748825970627,1.22195077,105480.0,105470.0,0.02666196]
[1748825970831,1.12943955,105480.0,105470.0,0.01777493]
[1748825971413,1.12943955,105480.0,105470.0,0.02666224]
[1748825971614,1.12943955,105480.0,105470.0,0.01777493]
[1748825972438,1.12943955,105480.0,105470.0,0.02666246]
[1748825973515,1.09713955,105480.0,105470.0,0.02665615]
[1748825973725,1.09711958,105480.0,105470.0,0.02665615]
[1748825974576,1.09711958,105480.0,105470.0,0.02665554]
[1748825975918,1.2204308,105480.0,105470.0,0.02665554]
[1748825976256,1.2204308,105480.0,105470.0,0.0266536]
[1748825976464,1.2204308,105480.0,105470.0,0.02665328]
[1748825976718,1.2204308,105480.0,105470.0,0.02665332]
[1748825976902,1.2204308,105480.0,105470.0,0.01777493]
[1748825977469,1.2204308,105480.0,105470.0,0.02665333]
[1748825977856,1.22040751,105480.0,105470.0,0.02665333]
[1748825978060,1.22040751,105480.0,105470.0,0.01777493]
[1748825978283,1.12789629,105480.0,105470.0,0.01777493]
[1748825978890,1.09587161,105480.0,105470.0,0.02665392]
[1748825979120,1.12789325,105480.0,105470.0,0.02665392]
[1748825979281,1.12789325,105480.0,105470.0,0.01777493]
[1748825981752,1.12789325,105480.0,105470.0,0.02665392]
[1748825981953,1.12789325,105480.0,105470.0,0.01777493]
[1748825982175,1.22040447,105480.0,105470.0,0.02665392]
[1748825982617,1.22039765,105480.0,105470.0,0.02665392]
[1748825983027,1.22039765,105480.0,105470.0,0.02665428]
[1748825983228,1.22039765,105480.0,105470.0,0.01777493]
[1748825984283,1.12788643,105480.0,105470.0,0.01777493]
[1748825984489,1.12788643,105480.0,105470.0,0.02665428]
[1748825984695,1.12788643,105480.0,105470.0,0.01777493]
[1748825986374,1.09680643,105480.0,105470.0,0.01777493]
[1748825986584,1.09680643,105480.0,105470.0,0.02665469]
[1748825986805,1.09679392,105480.0,105470.0,0.01777493]
[1748825988229,1.08715386,105480.0,105470.0,0.01777493]
[1748825988435,1.08715386,105480.0,105470.0,0.02665469]
[1748825989046,1.08715386,105480.0,105470.0,0.01777493]
[1748825989662,1.08715386,105480.0,105470.0,0.03397493]
[1748825990082,1.087152,105480.0,105470.0,0.04285469]
[1748825990292,1.087112,105480.0,105470.0,0.05845469]
[1748825991514,1.087112,105480.0,105470.0,0.05845508]
[1748825992032,1.087112,105480.0,105470.0,0.01777493]
[1748825992397,1.087112,105480.0,105470.0,0.02665508]
[1748825992607,1.087112,105480.0,105470.0,0.01777493]
[1748825994786,1.087112,105480.0,105470.0,0.02665667]
[1748825995064,1.087112,105480.0,105470.0,0.01777493]
[1748825995551,1.08711259,105480.0,105470.0,0.01777493]
[1748825995751,1.08711259,105480.0,105470.0,0.02666299]
[1748825995890,1.08711259,105480.0,105470.0,0.01777493]
[1748825996345,1.17962381,105480.0,105470.0,0.01777493]
[1748825996495,1.21212381,105480.0,105470.0,0.01777493]
[1748825996699,1.19562381,105480.0,105470.0,0.01777493]
[1748825997265,1.19562381,105480.0,105470.0,0.02666299]
[1748825997485,0.81398381,105480.0,105470.0,0.01777493]
[1748825997682,1.08707259,105480.0,105470.0,0.05806299]
[1748825997947,1.08707259,105480.0,105470.0,0.04917493]
[1748825998563,1.08707259,105480.0,105470.0,0.05806297]
[1748825998689,0.79539259,105480.0,105470.0,0.05806297]
[1748825998892,0.63407025,105480.0,105470.0,0.04917493]
[1748825999589,0.63407025,105480.0,105470.0,0.05806268]
[1748825999793,0.63407025,105480.0,105470.0,0.04917493]
[1748826000043,0.63407025,105480.0,105470.0,0.05806268]
[1748826000465,0.54857025,105480.0,105470.0,0.2577644]
[1748826000607,0.54857025,105480.0,105470.0,0.24828349]
[1748826000608,0.30796946,105480.0,105470.0,0.24828349]
[1748826000814,0.29849007,105480.0,105470.0,0.04917493]
[1748826001054,0.31303092,105480.0,105470.0,0.04917493]
[1748826002761,0.31303092,105480.0,105470.0,0.05806217]
[1748826003174,0.31288871,105480.0,105470.0,0.05806217]
[1748826003373,0.31288871,105480.0,105470.0,0.04917493]
[1748826003599,0.11821812,105480.0,105470.0,0.26724531]
[1748826003811,0.32236837,105480.0,105470.0,0.24828358]
[1748826004009,0.32236837,105480.0,105470.0,0.25776476]
[1748826004212,0.32236837,105480.0,105470.0,0.26724567]
[1748826004412,0.76874448,105490.0,105480.0,0.24046989]
[1748826004623,0.6626357,105490.0,105480.0,0.24046989]
[1748826004866,0.65315667,105490.0,105480.0,0.24047007]
[1748826005084,0.65315667,105490.0,105480.0,0.26831725]
[1748826005325,0.65315667,105490.0,105480.0,0.24995027]
[1748826005560,0.56323667,105490.0,105480.0,0.24995027]
[1748826005783,0.63861582,105490.0,105480.0,0.27720456]
[1748826006020,0.63861582,105490.0,105480.0,0.25943029]
[1748826006246,0.63861582,105490.0,105480.0,0.24995027]
[1748826006509,0.63861582,105490.0,105480.0,0.25943029]
[1748826006703,0.1090234,105490.0,105480.0,0.29557251]